bitfinex/quotes_SOLUSD_20230102
["timestamp","ask_amount","ask_price","bid_price","bid_amount"]
[1672617875208,75.23,9.9848,9.9801,20.0]
[1672617875412,75.2,9.9883,9.9801,20.0]
[1672617876457,30.0,9.9884,9.9801,20.0]
[1672617876458,75.23,9.9849,9.9801,20.0]
[1672617876673,30.0,9.9848,9.9801,20.0]
[1672617877628,30.0,9.988,9.9801,20.0]
[1672617877834,75.21,9.9879,9.9801,20.0]
[1672617880565,30.0,9.9878,9.9801,20.0]
[1672617880780,75.21,9.9877,9.9801,20.0]
[1672617881179,22.887,9.9876,9.9802,15.80730786]
[1672617881396,30.0,9.9849,9.9803,20.0]
[1672617881809,30.0,9.9849,9.9804,15.80730786]
[1672617882023,30.0,9.9849,9.9803,20.0]
[1672617882232,30.0,9.9849,9.9801,20.0]
[1672617882459,30.0,9.9847,9.9801,20.0]
[1672617882658,30.0,9.9845,9.9801,20.0]
[1672617883288,30.0,9.9845,9.9782,15.80730786]
[1672617883289,255.0,9.98,9.9782,15.80730786]
[1672617883498,255.0,9.98,9.9783,20.0]
[1672617884676,255.0,9.98,9.9797,74.66177315]
[1672617884981,255.0,9.98,9.9783,20.0]
[1672617889901,30.0,9.9799,9.9709,74.66177315]
[1672617890113,75.27,9.9798,9.9743,15.80730786]
[1672617890342,30.0,9.9797,9.9743,15.80730786]
[1672617890889,30.0,9.9797,9.9712,2.752]
[1672617891074,30.0,9.9795,9.9713,15.80730786]
[1672617891289,30.0,9.9795,9.9714,20.0]
[1672617891810,30.0,9.9793,9.9715,15.80730786]
[1672617892234,30.0,9.9791,9.9716,20.0]
[1672617892640,30.0,9.9791,9.9717,15.80730786]
[1672617892852,22.8157,9.979,9.9718,20.0]
[1672617893291,22.8157,9.979,9.9719,15.80730786]
[1672617893480,22.8157,9.9789,9.9719,15.80730786]
[1672617893684,22.8157,9.9789,9.972,20.0]
[1672617894129,22.8157,9.9789,9.9721,15.80730786]
[1672617894325,22.8157,9.9789,9.9722,20.0]
[1672617894743,22.8157,9.9789,9.9723,15.80730786]
[1672617895175,22.8157,9.9789,9.9724,20.0]
[1672617895586,22.8157,9.9789,9.9725,15.80730786]
[1672617895803,22.8157,9.9789,9.9726,20.0]
[1672617897908,22.8157,9.9789,9.9713,15.80730786]
[1672617898118,24.4602,9.9788,9.9714,20.0]
[1672617898540,24.4602,9.9788,9.9715,15.80730786]
[1672617898752,24.4602,9.9788,9.9716,20.0]
[1672617899064,24.4602,9.9787,9.9717,15.80730786]
[1672617899274,24.4602,9.9787,9.9718,20.0]
[1672617899711,24.4602,9.9787,9.9719,15.80730786]
[1672617900426,24.4602,9.9787,9.972,20.0]
[1672617900852,24.4602,9.9787,9.9721,15.80730786]
[1672617901272,24.4602,9.9787,9.9722,50.0]
[1672617901705,24.4602,9.9787,9.9723,15.80730786]
[1672617902024,24.4602,9.9787,9.9725,30.0]
[1672617902208,24.4602,9.9787,9.9726,20.0]
[1672617902425,24.4602,9.9787,9.9727,30.0]
[1672617902638,24.4602,9.9787,9.9727,45.80730786]
[1672617902963,0.76069214,9.97,9.9685,30.0]
[1672617903159,0.76069214,9.97,9.9697,30.0]
[1672617903703,0.76069214,9.97,9.9699,30.0]
[1672617903908,0.76069214,9.97,9.9699,329.6]
[1672617904107,0.76069214,9.97,9.9699,429.2257837]
[1672617904316,0.76069214,9.97,9.9699,449.2257837]
[1672617904532,0.76069214,9.97,9.9699,529.12738397]
[1672617904728,0.76069214,9.97,9.9699,229.52738397]
[1672617905586,0.76069214,9.97,9.9699,529.12738397]
[1672617907605,0.76069214,9.97,9.9699,229.52738397]
[1672617907820,47.3977,9.9775,9.97,30.76]
[1672617908009,47.3977,9.9775,9.9703,30.0]
[1672617908214,47.3977,9.9775,9.9705,30.0]
[1672617908449,47.3977,9.9775,9.9706,20.0]
[1672617908663,47.3977,9.9775,9.9707,30.0]
[1672617908865,47.3977,9.9775,9.9709,30.0]
[1672617909074,47.3977,9.9775,9.971,20.0]
[1672617909284,47.3977,9.9775,9.9711,30.0]
[1672617909605,47.3977,9.9775,9.9712,53.81847584]
[1672617909803,47.3977,9.9775,9.9714,30.0]
[1672617910132,47.3977,9.9775,9.9715,53.81847584]
[1672617910325,47.3977,9.9775,9.9717,30.0]
[1672617910742,47.3977,9.9775,9.9718,89.6257837]
[1672617911082,47.3977,9.9775,9.9719,45.80730786]
[1672617911274,47.3977,9.9775,9.9721,30.0]
[1672617911793,47.3977,9.9775,9.9723,30.0]
[1672617912001,47.3977,9.9775,9.9724,20.0]
[1672617912214,47.3977,9.9775,9.9725,30.0]
[1672617912534,47.3977,9.9775,9.9725,45.80730786]
[1672617912744,47.3977,9.9775,9.9727,30.0]
[1672617912964,47.3977,9.9775,9.9728,20.0]
[1672617913177,47.3977,9.9775,9.9729,30.0]
[1672617913498,47.3977,9.9775,9.9731,30.0]
[1672617913908,47.3977,9.9775,9.9733,30.0]
[1672617914317,47.3977,9.9775,9.9734,15.80730786]
[1672617915801,47.3977,9.9775,9.9736,30.0]
[1672617916129,47.3977,9.9775,9.9737,95.70890813]
[1672617916533,47.3977,9.9775,9.9739,30.0]
[1672617916947,47.3977,9.9775,9.9741,30.0]
[1672617917372,47.3977,9.9775,9.9742,95.70890813]
[1672617917582,47.3977,9.9775,9.9743,30.0]
[1672617917791,47.3977,9.9775,9.9743,125.70890813]
[1672617918006,47.3977,9.9775,9.9744,95.70890813]
[1672617918222,47.3977,9.9775,9.9745,30.0]
[1672617918412,47.3977,9.9775,9.9745,125.70890813]
[1672617918626,47.3977,9.9775,9.9746,15.80730786]
[1672617918839,47.3977,9.9775,9.9747,30.0]
[1672617919258,47.3977,9.9775,9.9748,15.80730786]
[1672617919480,110.3251,9.9816,9.9749,30.0]
[1672617919675,75.25,9.9815,9.9749,30.0]
[1672617919887,75.25,9.9815,9.975,15.80730786]
[1672617920308,160.20886698,9.9815,9.9751,109.90160027]
[1672617920623,84.95886698,9.9815,9.9752,15.80730786]
[1672617920828,84.95886698,9.9815,9.9753,30.0]
[1672617921060,84.95886698,9.9815,9.9753,389.17019584]
[1672617921257,84.95886698,9.9815,9.9755,329.6]
[1672617921589,23.8757,9.9871,9.9757,299.6]
[1672617921895,75.14,9.9965,9.98,5.69]
[1672617922101,232.8072,9.9965,9.98,5.69]
[1672617922317,30.0,9.9964,9.9802,299.6]
[1672617922526,75.14,9.9963,9.9803,20.0]
[1672617922752,30.0,9.9962,9.9804,30.0]
[1672617922934,75.14,9.9961,9.9805,20.0]
[1672617923143,30.0,9.996,9.9806,30.0]
[1672617923351,75.15,9.9959,9.9807,20.0]
[1672617923795,30.0,9.9958,9.9808,105.3775037]
[1672617923988,75.15,9.9957,9.981,30.0]
[1672617924197,30.0,9.9956,9.9811,20.0]
[1672617924538,75.15,9.9955,9.9812,30.0]
[1672617924732,30.0,9.9954,9.9812,169.47179611]
[1672617924930,75.15,9.9953,9.9813,79.57019584]
[1672617925144,30.0,9.9952,9.9814,30.0]
[1672617925353,75.15,9.9951,9.9815,20.0]
[1672617925562,30.0,9.995,9.9815,20.0]
[1672617925775,30.0,9.9948,9.9815,20.0]
[1672617925985,30.0,9.9946,9.9814,59.57019584]
[1672617926196,30.0,9.9944,9.9815,5.40941532]
[1672617926428,30.0,9.9942,9.9814,59.57019584]
[1672617926619,75.16,9.9941,9.9815,30.0]
[1672617926948,30.0,9.994,9.9816,59.57019584]
[1672617927135,30.0,9.9938,9.9816,155.27910397]
[1672617927349,75.16,9.9937,9.9818,30.0]
[1672617927559,30.0,9.9936,9.9818,30.0]
[1672617927782,30.0,9.9934,9.9819,15.80730786]
[1672617927996,30.0,9.9932,9.9819,15.80730786]
[1672617928199,75.17,9.9931,9.9819,15.80730786]
[1672617928421,30.0,9.993,9.982,50.0]
[1672617928633,75.17,9.9929,9.982,50.0]
[1672617928831,30.0,9.9928,9.982,65.80730786]
[1672617929037,30.0,9.9926,9.982,65.80730786]
[1672617929254,75.17,9.9925,9.982,65.80730786]
[1672617929464,30.0,9.9924,9.982,65.80730786]
[1672617929673,75.17,9.9923,9.982,65.80730786]
[1672617929901,30.0,9.9922,9.982,65.80730786]
[1672617930116,30.0,9.992,9.982,65.80730786]
[1672617930322,30.0,9.9918,9.982,65.80730786]
[1672617930520,30.0,9.9916,9.982,65.80730786]
[1672617930721,75.18,9.9915,9.982,65.80730786]
[1672617930938,30.0,9.9914,9.982,35.80730786]
[1672617931145,30.0,9.9912,9.9821,30.0]
[1672617931356,75.18,9.9911,9.9822,20.0]
[1672617931567,98.0017,9.9911,9.9823,30.0]
[1672617931774,98.0017,9.9911,9.9824,20.0]
[1672617931775,30.0,9.991,9.9824,20.0]
[1672617931988,75.18,9.9909,9.9824,35.80730786]
[1672617932210,30.0,9.9908,9.9824,35.80730786]
[1672617932415,75.18,9.9909,9.9825,15.80730786]
[1672617932626,30.0,9.9908,9.9825,15.80730786]
[1672617932838,30.0,9.9908,9.9826,20.0]
[1672617933254,30.0,9.9908,9.9827,15.80730786]
[1672617933797,30.0,9.9908,9.9828,20.0]
[1672617933999,30.0,9.9906,9.9828,20.0]
[1672617934318,30.0,9.9904,9.9819,20.0]
[1672617934522,75.19,9.9903,9.9822,15.80730786]
[1672617934714,30.0,9.9902,9.9823,20.0]
[1672617934925,30.0,9.99,9.9823,20.0]
[1672617935151,75.19,9.9899,9.9823,20.0]
[1672617935369,30.0,9.9898,9.9823,20.0]
[1672617935768,30.0,9.9896,9.9818,20.0]
[1672617935978,30.0,9.9894,9.9801,20.0]
[1672617936207,75.2,9.9893,9.9801,20.0]
[1672617936398,30.0,9.9892,9.9801,20.0]
[1672617936609,30.0,9.989,9.9801,20.0]
[1672617936824,75.2,9.9889,9.9801,20.0]
[1672617937026,30.0,9.9888,9.9801,20.0]
[1672617937372,30.0,9.9886,9.9801,20.0]
[1672617937577,30.0,9.9884,9.9801,20.0]
[1672617937885,30.0,9.9882,9.9801,20.0]
[1672617938102,75.2,9.9881,9.9801,20.0]
[1672617938423,30.0,9.988,9.9801,20.0]
[1672617938606,30.0,9.988,9.9801,99.90160027]
[1672617940961,30.0,9.988,9.9802,30.0]
[1672617941251,30.0,9.9882,9.9803,20.0]
[1672617941984,30.0,9.9882,9.9802,20.0]
[1672617942198,30.0,9.9882,9.9804,15.80730786]
[1672617942413,30.0,9.9882,9.9805,20.0]
[1672617942629,30.0,9.9882,9.9806,30.0]
[1672617942814,30.0,9.9882,9.9807,20.0]
[1672617943025,30.0,9.9882,9.9807,35.80730786]
[1672617943239,30.0,9.9882,9.9808,15.80730786]
[1672617943459,30.0,9.9882,9.9809,20.0]
[1672617943865,30.0,9.9882,9.981,15.80730786]
[1672617944194,75.2,9.9883,9.981,15.80730786]
[1672617944392,30.0,9.9884,9.9811,20.0]
[1672617944815,23.315,9.9885,9.9812,15.80730786]
[1672617945461,23.315,9.9885,9.9813,20.0]
[1672617948934,30.0,9.9884,9.9813,20.0]
[1672617949342,30.0,9.9882,9.9802,20.0]
[1672617950730,30.0,9.9882,9.9803,30.0]
[1672617950929,30.0,9.9882,9.9804,20.0]
[1672617951126,30.0,9.9882,9.9802,20.0]
[1672617952702,30.0,9.988,9.9802,20.0]
[1672617953334,22.7086,9.9879,9.9802,20.0]
[1672617953751,30.0,9.9878,9.9802,20.0]
[1672617953967,52.7086,9.9878,9.9802,20.0]
[1672617954593,22.7086,9.9877,9.9803,15.80730786]
[1672617954808,22.7086,9.9877,9.9804,20.0]
[1672617955235,23.4503,9.9876,9.9805,15.80730786]
[1672617955649,23.4503,9.9876,9.9806,20.0]
[1672617955855,30.0,9.9883,9.9806,20.0]
[1672617955856,30.0,9.9874,9.9806,20.0]
[1672617956176,30.0,9.9874,9.9807,95.70890813]
[1672617956385,30.0,9.9874,9.9808,20.0]
[1672617956605,30.0,9.9874,9.9808,35.80730786]
[1672617956820,30.0,9.9874,9.9809,15.80730786]
[1672617957448,30.0,9.9874,9.981,20.0]
[1672617960922,23.4503,9.9875,9.981,20.0]
[1672617961153,23.4503,9.9875,9.981,99.90160027]
[1672617961458,23.4503,9.9875,9.9811,15.80730786]
[1672617961783,23.4503,9.9875,9.9812,189.47179611]
[1672617962185,23.4503,9.9875,9.9813,155.27910397]
[1672617962404,23.4503,9.9875,9.9814,20.0]
[1672617962601,23.4503,9.9875,9.9814,175.27910397]
[1672617962812,23.4503,9.9875,9.9815,105.3775037]
[1672617963144,23.4503,9.9875,9.9816,155.27910397]
[1672617963361,23.4503,9.9875,9.9818,30.0]
[1672617963679,23.4503,9.9875,9.9819,139.47179611]
[1672617963863,23.4503,9.9875,9.982,20.0]
[1672617964198,23.4503,9.9875,9.9821,89.57019584]
[1672617964517,23.4503,9.9875,9.9823,30.0]
[1672617964915,23.4503,9.9875,9.9825,30.0]
[1672617965126,23.4503,9.9875,9.9826,20.0]
[1672617965336,23.4503,9.9875,9.9827,30.0]
[1672617965550,23.4503,9.9875,9.9827,45.80730786]
[1672617965771,23.4503,9.9875,9.9828,35.80730786]
[1672617965982,23.4503,9.9875,9.9829,30.0]
[1672617966187,23.4503,9.9875,9.9829,15.80730786]
[1672617966389,23.4503,9.9875,9.983,35.80730786]
[1672617966610,23.4503,9.9875,9.983,15.80730786]
[1672617966934,23.4503,9.9875,9.9831,35.80730786]
[1672617967146,23.4503,9.9875,9.9831,15.80730786]
[1672617968085,23.4503,9.9875,9.9828,20.0]
[1672617968301,23.4503,9.9875,9.9825,20.0]
[1672617968694,23.4503,9.9875,9.9826,15.80730786]
[1672617968910,23.4503,9.9875,9.9827,20.0]
[1672617969648,23.4503,9.9875,9.9828,45.80730786]
[1672617969857,23.4503,9.9875,9.9829,20.0]
[1672617970067,23.4503,9.9875,9.9829,35.80730786]
[1672617970278,23.4503,9.9875,9.983,15.80730786]
[1672617970489,23.4503,9.9875,9.9831,20.0]
[1672617970910,23.4503,9.9875,9.9832,15.80730786]
[1672617974282,23.4503,9.9875,9.9831,20.0]
[1672617974488,23.4503,9.9875,9.9825,20.0]
[1672617977428,23.4503,9.9875,9.9826,30.0]
[1672617977639,23.4503,9.9875,9.9827,20.0]
[1672617979419,23.4503,9.9875,9.9826,20.0]
[1672617984073,23.4503,9.9875,9.9827,79.90160027]
[1672617984254,23.4503,9.9875,9.9828,20.0]
[1672617990995,23.4503,9.9875,9.9828,99.90160027]
[1672618008670,30.0,9.9874,9.9828,20.0]
[1672618008869,30.0,9.9874,9.9813,20.0]
[1672618009073,30.0,9.9874,9.9809,20.0]
[1672618009300,30.0,9.9874,9.9807,20.0]
[1672618010352,75.21,9.9873,9.9807,20.0]
[1672618010567,30.0,9.9872,9.9801,20.0]
[1672618010780,30.0,9.987,9.98,20.0]
[1672618010976,75.21,9.9869,9.98,20.0]
[1672618011181,75.21,9.9869,9.9791,20.0]
[1672618011182,30.0,9.9868,9.9791,20.0]
[1672618011387,30.0,9.9866,9.9791,20.0]
[1672618011617,30.0,9.9864,9.9791,20.0]
[1672618011934,30.0,9.9862,9.9791,20.0]
[1672618012128,75.22,9.9861,9.9791,20.0]
[1672618012338,30.0,9.986,9.9791,20.0]
[1672618012549,30.0,9.9858,9.9791,20.0]
[1672618012761,30.0,9.9856,9.9791,20.0]
[1672618019289,30.0,9.9856,9.9791,35.80730786]
[1672618020767,30.0,9.9856,9.9791,20.0]
[1672618021174,30.0,9.9856,9.979,24.8835]
[1672618021385,75.22,9.9855,9.979,24.8835]
[1672618021929,144.98083164,9.9854,9.9685,74.66177315]
[1672618022237,5.68,9.98,9.9689,30.0]
[1672618022440,231.867,9.9799,9.969,131.4835]
[1672618022653,30.0,9.9798,9.9691,30.0]
[1672618022862,30.0,9.9798,9.9692,20.0]
[1672618022863,75.27,9.9797,9.9692,20.0]
[1672618023098,30.0,9.9796,9.9693,30.0]
[1672618023274,75.27,9.9795,9.9694,20.0]
[1672618023485,30.0,9.9794,9.9694,20.0]
[1672618023701,75.27,9.9793,9.9695,15.80730786]
[1672618023913,30.0,9.9792,9.9696,20.0]
[1672618024114,75.27,9.9791,9.9696,20.0]
[1672618024450,30.0,9.979,9.9697,15.80730786]
[1672618024637,30.0,9.979,9.9696,20.0]
[1672618024638,30.0,9.9788,9.9696,20.0]
[1672618024846,75.28,9.9787,9.9691,20.0]
[1672618025057,30.0,9.9786,9.9691,20.0]
[1672618025268,75.28,9.9785,9.9691,20.0]
[1672618025480,30.0,9.9784,9.9691,20.0]
[1672618025688,75.28,9.9783,9.9691,20.0]
[1672618025899,30.0,9.9782,9.9691,20.0]
[1672618026123,30.0,9.978,9.9691,20.0]
[1672618026333,30.0,9.9778,9.9691,20.0]
[1672618026529,30.0,9.9776,9.9691,20.0]
[1672618026742,75.28,9.9775,9.9691,20.0]
[1672618026955,30.0,9.9774,9.9691,20.0]
[1672618027171,30.0,9.9772,9.9691,20.0]
[1672618027374,75.29,9.9771,9.9691,35.80730786]
[1672618027595,30.0,9.977,9.9691,35.80730786]
[1672618027803,75.29,9.9769,9.9691,35.80730786]
[1672618028016,30.0,9.9768,9.9691,35.80730786]
[1672618028219,30.0,9.9766,9.9691,35.80730786]
[1672618028438,75.29,9.9765,9.9691,35.80730786]
[1672618028645,75.29,9.9765,9.9692,30.0]
[1672618028860,23.7545,9.9776,9.9701,30.0]
[1672618029071,23.7545,9.9776,9.9702,20.0]
[1672618029262,23.7545,9.9776,9.9702,222.09903972]
[1672618029473,23.7545,9.9776,9.9703,115.81381949]
[1672618029681,23.7545,9.9776,9.9704,20.0]
[1672618029892,23.7545,9.9776,9.9705,30.0]
[1672618030102,23.7545,9.9776,9.9707,30.0]
[1672618030312,23.7545,9.9776,9.9708,20.0]
[1672618030530,23.7545,9.9776,9.9709,30.0]
[1672618030735,23.7545,9.9776,9.9711,30.0]
[1672618031058,23.7545,9.9776,9.9713,30.0]
[1672618031275,23.7545,9.9776,9.9714,20.0]
[1672618031493,23.7545,9.9776,9.9715,30.0]
[1672618031705,23.7545,9.9776,9.9716,20.0]
[1672618032013,23.7545,9.9776,9.9717,30.0]
[1672618032226,23.7545,9.9776,9.9717,100.00651163]
[1672618032436,23.7545,9.9776,9.9719,30.0]
[1672618032860,23.7545,9.9776,9.9721,30.0]
[1672618033056,23.7545,9.9776,9.9722,20.0]
[1672618033270,23.7545,9.9776,9.9723,30.0]
[1672618033480,23.7545,9.9776,9.9724,20.0]
[1672618033809,23.7545,9.9776,9.9725,30.0]
[1672618034122,23.7545,9.9776,9.9725,115.81381949]
[1672618034335,23.7545,9.9776,9.9727,30.0]
[1672618034854,23.7545,9.9776,9.9729,30.0]
[1672618035074,23.7545,9.9776,9.9731,30.0]
[1672618035473,23.7545,9.9776,9.9732,85.81381949]
[1672618035682,23.7545,9.9776,9.9733,30.0]
[1672618035910,23.7545,9.9776,9.9733,115.81381949]
[1672618036125,23.7545,9.9776,9.9735,30.0]
[1672618036435,23.7545,9.9776,9.9736,85.81381949]
[1672618036647,23.7545,9.9776,9.9737,30.0]
[1672618036845,23.7545,9.9776,9.9737,115.81381949]
[1672618037060,23.7545,9.9776,9.9738,15.80730786]
[1672618037482,23.7545,9.9776,9.9739,30.0]
[1672618037795,23.7545,9.9776,9.974,15.80730786]
[1672618041583,23.7545,9.9776,9.9741,30.0]
[1672618043260,23.7545,9.9776,9.9742,85.81381949]
[1672618043469,23.7545,9.9776,9.9743,30.0]
[1672618043683,23.7545,9.9776,9.9743,115.81381949]
[1672618043905,23.7545,9.9776,9.9745,30.0]
[1672618044310,23.7545,9.9776,9.9747,30.0]
[1672618044740,23.7545,9.9776,9.9749,30.0]
[1672618045163,23.756,9.9782,9.9749,45.80730786]
[1672618047999,23.756,9.9782,9.9749,115.81381949]
[1672618049572,23.756,9.9782,9.9749,70.00651163]
[1672618051453,23.756,9.9782,9.9713,30.0]
[1672618051875,23.756,9.9782,9.9718,20.0]
[1672618052084,75.28,9.9781,9.9718,20.0]
[1672618052314,75.28,9.9781,9.971,20.0]
[1672618052525,23.756,9.9782,9.971,20.0]
[1672618052718,23.8753,9.978,9.971,20.0]
[1672618053345,23.8753,9.978,9.9711,30.0]
[1672618053778,23.8753,9.978,9.9712,35.80730786]
[1672618053992,23.8753,9.978,9.9713,30.0]
[1672618054188,23.8753,9.978,9.9714,20.0]
[1672618054401,23.8753,9.978,9.9715,30.0]
[1672618054605,23.8753,9.978,9.9715,45.80730786]
[1672618054830,23.8753,9.978,9.9717,30.0]
[1672618055235,23.8753,9.978,9.9718,20.0]
[1672618056816,30.0,9.9779,9.9704,20.0]
[1672618057244,30.0,9.9779,9.9702,20.0]
[1672618057477,30.0,9.9779,9.9705,15.80730786]
[1672618057666,30.0,9.9779,9.9706,20.0]
[1672618058110,23.8753,9.978,9.9706,35.80730786]
[1672618058423,30.0,9.9779,9.9706,20.0]
[1672618058827,30.0,9.9779,9.9702,20.0]
[1672618059154,30.0,9.9779,9.9703,35.08]
[1672618059368,23.8753,9.978,9.9704,20.0]
[1672618059569,23.8753,9.978,9.9705,65.08]
[1672618059781,23.8753,9.978,9.9706,20.0]
[1672618059989,75.28,9.9779,9.9707,35.08]
[1672618060417,75.28,9.9779,9.9708,20.0]
[1672618060614,23.8753,9.978,9.9709,35.08]
[1672618060817,23.8753,9.978,9.971,20.0]
[1672618061667,23.8753,9.978,9.9708,30.0]
[1672618061877,23.8753,9.978,9.9709,55.08]
[1672618062084,23.8753,9.978,9.971,30.0]
[1672618062303,23.8753,9.978,9.9711,20.0]
[1672618063789,23.8753,9.978,9.9712,30.0]
[1672618064417,23.8753,9.978,9.9713,20.0]
[1672618066807,23.8753,9.978,9.9714,15.80730786]
[1672618067036,23.8753,9.978,9.9715,20.0]
[1672618067568,23.8753,9.978,9.9716,15.80730786]
[1672618067885,23.8753,9.978,9.9717,20.0]
[1672618068288,23.8753,9.978,9.9718,15.80730786]
[1672618068718,30.0,9.9779,9.9718,15.80730786]
[1672618068928,30.0,9.9779,9.9719,20.0]
[1672618069466,30.0,9.9779,9.972,15.80730786]
[1672618069890,30.0,9.9779,9.9721,20.0]
[1672618070200,23.8753,9.978,9.9722,15.80730786]
[1672618070409,23.8753,9.978,9.9723,20.0]
[1672618070941,23.8753,9.978,9.9724,15.80730786]
[1672618071357,23.8753,9.978,9.9725,20.0]
[1672618071758,23.8753,9.978,9.9726,15.80730786]
[1672618072407,23.8753,9.978,9.9727,20.0]
[1672618072816,23.8753,9.978,9.9727,35.80730786]
[1672618075229,30.0,9.9778,9.9727,20.0]
[1672618075440,30.0,9.9776,9.9714,20.0]
[1672618075651,75.28,9.9775,9.9711,20.0]
[1672618075873,30.0,9.9774,9.9711,20.0]
[1672618076078,30.0,9.9772,9.9711,35.80730786]
[1672618076286,30.0,9.977,9.9711,35.69013533]
[1672618076490,75.29,9.9769,9.9711,35.69013533]
[1672618076927,75.29,9.9769,9.9712,30.0]
[1672618077125,75.28,9.9779,9.9712,30.0]
[1672618077338,75.28,9.9779,9.9713,15.80730786]
[1672618078297,75.28,9.9779,9.9715,30.0]
[1672618078488,75.27,9.9793,9.9715,30.0]
[1672618078709,75.27,9.9793,9.9717,30.0]
[1672618079034,75.27,9.9793,9.9719,30.0]
[1672618079345,75.27,9.9793,9.972,35.80730786]
[1672618079547,75.27,9.9793,9.9721,30.0]
[1672618079753,75.27,9.9793,9.9722,20.0]
[1672618079978,75.27,9.9793,9.9723,30.0]
[1672618080293,75.27,9.9793,9.9724,20.0]
[1672618080486,75.27,9.9793,9.9724,35.80730786]
[1672618080700,75.27,9.9793,9.9726,30.0]
[1672618080915,75.27,9.9793,9.9727,20.0]
[1672618081126,75.27,9.9793,9.9728,30.0]
[1672618081448,75.27,9.9793,9.9729,20.0]
[1672618081655,75.27,9.9793,9.9729,35.80730786]
[1672618081874,75.27,9.9793,9.973,15.80730786]
[1672618082084,75.27,9.9793,9.9731,20.0]
[1672618082485,75.27,9.9793,9.9732,15.80730786]
[1672618086162,75.25,9.9814,9.9733,30.0]
[1672618086585,75.25,9.9814,9.9734,15.80730786]
[1672618090052,75.24,9.983,9.9734,77.66306265]
[1672618090265,75.24,9.983,9.9735,30.0]
[1672618090484,75.25,9.9814,9.9735,45.80730786]
[1672618090683,75.25,9.9814,9.9737,30.0]
[1672618091147,75.24,9.983,9.9738,81.12116958]
[1672618091443,30.0,9.9829,9.9739,111.12116958]
[1672618091652,75.24,9.9828,9.9739,111.12116958]
[1672618091858,75.24,9.9828,9.9741,30.0]
[1672618092177,30.0,9.9827,9.9742,81.12116958]
[1672618092489,75.25,9.9826,9.9743,111.12116958]
[1672618092892,75.25,9.9826,9.9745,30.0]
[1672618093308,75.25,9.9826,9.9747,30.0]
[1672618093516,30.0,9.9825,9.9747,30.0]
[1672618093735,75.25,9.9824,9.9749,30.0]
[1672618094156,75.25,9.9824,9.9751,30.0]
[1672618094572,30.0,9.9823,9.9752,15.80730786]
[1672618095846,75.25,9.9822,9.9752,15.80730786]
[1672618096472,23.3702,9.9814,9.9752,15.80730786]
[1672618097123,23.3702,9.9813,9.9752,15.80730786]
[1672618097341,23.3702,9.9813,9.9753,95.31386172]
[1672618097864,23.3702,9.9812,9.9755,30.0]
[1672618098066,23.3702,9.9812,9.9756,17.68]
[1672618098270,23.3702,9.9811,9.9757,30.0]
[1672618098594,23.3702,9.9811,9.9757,45.80730786]
[1672618098799,23.3702,9.9811,9.9758,15.80730786]
[1672618103204,23.3702,9.9811,9.9759,30.0]
[1672618103632,23.3702,9.9811,9.976,15.80730786]
[1672618104667,23.3702,9.9811,9.9761,30.0]
[1672618106452,23.3702,9.9811,9.9762,15.80730786]
[1672618112342,23.3702,9.9811,9.9763,30.0]
[1672618114356,23.3702,9.9811,9.9763,15.80730786]
[1672618114556,23.3702,9.9811,9.9758,65.31386172]
[1672618115088,23.3702,9.9811,9.975,65.31386172]
[1672618118874,23.3702,9.9811,9.9755,30.0]
[1672618119923,23.3702,9.9811,9.975,65.31386172]
[1672618120332,30.0,9.9809,9.975,65.31386172]
[1672618120545,75.26,9.9808,9.975,65.31386172]
[1672618120874,30.0,9.9807,9.975,65.31386172]
[1672618121204,30.0,9.9805,9.975,65.31386172]
[1672618121508,30.0,9.9803,9.975,65.31386172]
[1672618121703,30.0,9.9801,9.975,65.31386172]
[1672618121919,75.27,9.98,9.975,65.31386172]
[1672618122132,30.0,9.9799,9.975,65.31386172]
[1672618122347,75.27,9.98,9.975,65.31386172]
[1672618122572,30.0,9.9801,9.975,65.31386172]
[1672618126229,30.0,9.9801,9.9721,30.0]
[1672618126440,30.0,9.9799,9.9721,30.0]
[1672618127289,30.0,9.9797,9.9721,30.0]
[1672618127496,30.0,9.9795,9.9721,30.0]
[1672618128319,30.0,9.9795,9.9707,54.42946544]
[1672618128533,75.27,9.9794,9.9708,17.73]
[1672618128754,30.0,9.9793,9.9709,20.0]
[1672618128959,75.27,9.9792,9.9709,20.0]
[1672618129166,30.0,9.9791,9.9709,20.0]